bitfinex-derivatives/quotes_ETHF0:USTF0_20260226
["timestamp","ask_amount","ask_price","bid_price","bid_amount"]
[1772103160870,1.70936796,2064.1,2063.6,1.62673318]
[1772103161871,1.70936796,2064.1,2063.6,1.63075206]
[1772103168971,1.70936796,2064.2,2063.7,1.62673318]
[1772103169274,1.70936796,2064.3,2063.9,1.62673318]
[1772103172078,1.70936796,2064.3,2063.7,1.62673318]
[1772103172277,1.70936796,2064.2,2063.6,1.63075206]
[1772103172579,1.70936796,2063.6,2063.0,1.62673318]
[1772103173479,1.70936796,2063.6,2063.0,1.63275169]
[1772103175783,1.70936796,2063.6,2062.8,1.62673318]
[1772103176484,1.70936796,2063.6,2062.4,1.67640288]
[1772103176679,1.70936796,2063.6,2062.4,0.00339375]
[1772103176983,4.24009293,2063.7,2062.4,1.67979663]
[1772103176984,1.72241328,2063.3,2062.4,1.67979663]
[1772103181985,1.72241328,2063.5,2062.9,1.67640288]
[1772103182382,1.72241328,2063.8,2062.9,1.67640288]
[1772103182581,1.72241328,2063.6,2062.9,1.67640288]
[1772103186383,46.79785456,2064.1,2063.0,1.18386092]
[1772103186384,1.72241328,2063.8,2063.0,1.18386092]
[1772103186684,1.72241328,2064.0,2063.3,1.67640288]
[1772103186886,1.72241328,2064.3,2063.4,1.67640288]
[1772103189481,1.72602882,2064.5,2063.7,1.67640288]
[1772103190381,1.72602882,2064.5,2063.4,1.67640288]
[1772103190587,1.72241328,2064.2,2063.4,1.67640288]
[1772103193394,1.72241328,2064.4,2063.4,1.67640288]
[1772103195392,1.72241328,2064.4,2063.6,1.67640288]
[1772103195893,1.72602882,2064.5,2063.6,1.67640288]
[1772103196087,0.00361554,2064.5,2063.8,1.67640288]
[1772103197093,1.72241328,2064.8,2064.0,1.67640288]
[1772103197893,1.72241328,2064.8,2063.9,1.67640288]
[1772103198093,1.7269726,2064.8,2063.9,1.68229741]
[1772103208701,1.71800742,2064.6,2063.9,1.68229741]
[1772103210703,1.71800742,2064.6,2063.5,0.24229]
[1772103210704,1.71800742,2064.4,2063.5,1.61755081]
[1772103211005,1.71800742,2064.2,2063.1,1.61755081]
[1772103211803,1.71800742,2064.2,2063.1,1.62363939]
[1772103212405,1.71800742,2064.0,2063.1,1.62363939]
[1772103212705,1.71800742,2063.8,2063.1,1.62363939]
[1772103213805,1.71800742,2063.6,2063.1,1.62363939]
[1772103214006,1.71800742,2063.6,2062.9,1.61755081]
[1772103214906,1.71800742,2063.6,2062.9,1.6223667]
[1772103220906,1.71800742,2063.6,2062.9,0.00481589]
[1772103221110,1.71800742,2063.6,2062.9,1.57757702]
[1772103223314,1.68088536,2063.4,2062.9,1.57276113]
[1772103224313,1.68088536,2063.4,2062.9,1.57713066]
[1772103225607,1.68088536,2063.4,2062.9,0.00436953]
[1772103225914,1.68088536,2063.4,2062.9,1.57713066]
[1772103226815,1.68088536,2063.6,2062.9,1.57713066]
[1772103228326,1.68088536,2063.4,2062.9,0.00436953]
[1772103228923,1.68088536,2063.4,2062.9,1.57713066]
[1772103230520,1.68088536,2063.4,2062.9,0.00436953]
[1772103230719,1.68088536,2063.4,2062.9,1.57713066]
[1772103231127,1.68088536,2063.4,2062.9,0.00436953]
[1772103231525,1.68088536,2063.4,2062.9,1.57713066]
[1772103231917,1.68088536,2063.4,2062.9,0.00436953]
[1772103233224,1.68088536,2063.4,2062.8,1.57276113]
[1772103234227,1.68088536,2063.4,2062.8,1.57669493]
[1772103234825,1.68088536,2063.4,2062.8,1.18803048]
[1772103235030,1.68088536,2063.4,2062.9,1.57276113]
[1772103237233,9.21137263,2063.3,2062.9,1.57276113]
[1772103237426,1.58207173,2063.3,2062.9,1.57276113]
[1772103240337,7.63334426,2063.2,2062.9,1.57276113]
[1772103240538,1.58207173,2063.3,2062.9,1.57276113]
[1772103240835,7.63334426,2063.2,2062.9,1.57276113]
[1772103241035,1.58207173,2063.3,2062.9,1.57276113]
[1772103241234,7.63334426,2063.2,2062.9,1.57276113]
[1772103241437,1.58207173,2063.3,2062.9,1.57276113]
[1772103241635,7.63334426,2063.2,2062.9,1.57276113]
[1772103241834,1.58207173,2063.3,2062.9,1.57276113]
[1772103242035,7.63334395,2063.2,2062.9,1.57276113]
[1772103242236,1.58207173,2063.3,2062.9,1.57276113]
[1772103242436,7.63335682,2063.2,2062.9,1.57276113]
[1772103242632,1.58207173,2063.3,2062.9,1.57276113]
[1772103242829,7.63334395,2063.2,2062.9,1.57276113]
[1772103243035,1.58207173,2063.3,2062.9,1.57276113]
[1772103243234,7.63334395,2063.2,2062.9,1.57276113]
[1772103243532,1.58207173,2063.3,2062.9,1.57276113]
[1772103243733,7.63334395,2063.2,2062.9,1.57276113]
[1772103243929,1.58207173,2063.3,2062.9,1.57276113]
[1772103244134,9.21140386,2063.2,2062.9,1.57276113]
[1772103244332,0.00403249,2063.3,2062.9,1.57276113]
[1772103244643,7.63336666,2063.2,2062.9,1.57276113]
[1772103244941,1.58207173,2063.3,2062.9,1.57276113]
[1772103245245,7.63336689,2063.2,2062.9,1.57276113]
[1772103245542,1.58207173,2063.3,2062.9,1.57276113]
[1772103245746,7.63336752,2063.2,2062.9,1.57276113]
[1772103245937,1.58207173,2063.3,2062.9,1.57276113]
[1772103246137,7.63336752,2063.2,2062.9,1.57276113]
[1772103246442,1.58207173,2063.3,2062.9,1.57276113]
[1772103246639,7.6333672,2063.2,2062.9,1.57276113]
[1772103246944,3.99782293,2063.6,2063.1,1.58330661]
[1772103247239,5.99785456,2063.8,2063.0,1.18409668]
[1772103247240,1.57803924,2063.8,2063.4,1.58330661]
[1772103247840,1.58151336,2063.8,2063.4,1.58330661]
[1772103249440,1.58151336,2063.8,2063.4,1.57973345]
[1772103250042,0.00347412,2063.8,2063.4,1.57973345]
[1772103250244,1.57803924,2064.0,2063.6,1.58330661]
[1772103250944,10.9116377,2064.1,2063.6,1.58330661]
[1772103251240,0.00375457,2064.1,2063.8,1.58330661]
[1772103251443,0.9466377,2064.3,2063.8,1.58330661]
[1772103251639,0.94629677,2064.5,2064.0,1.58330661]
[1772103252147,0.94629677,2064.7,2064.0,1.58330661]
[1772103252342,0.9459757,2064.6,2064.0,1.58330661]
[1772103252543,0.93604386,2064.4,2063.8,1.58330661]
[1772103254641,0.93604386,2064.4,2063.8,1.58330661]
[1772103255040,0.93604386,2064.4,2063.5,7.52409668]
[1772103255346,0.93604386,2064.4,2063.5,1.58330661]
[1772103255347,0.93668072,2063.9,2063.5,1.58330661]
[1772103257144,0.93668072,2063.9,2063.3,1.58330661]
[1772103258447,0.93668072,2063.9,2063.2,1.58330661]
[1772103259245,0.93668072,2063.9,2063.4,1.58330661]
[1772103260246,0.93668072,2063.9,2062.9,6.341]
[1772103260446,1.01469401,2063.5,2062.9,1.58330661]
[1772103266851,1.01469401,2063.5,2063.0,1.67590169]
[1772103267054,1.00236976,2063.6,2063.1,1.67590169]
[1772103267251,1.00236976,2063.6,2063.0,1.67590169]
[1772103269053,1.01105374,2063.5,2063.0,1.67590169]
[1772103269453,1.01084883,2063.4,2062.9,1.67590169]
[1772103273564,1.01084883,2063.4,2062.8,1.67983549]
[1772103274659,1.01726674,2063.2,2062.6,1.67590169]
[1772103275762,1.02125599,2063.2,2062.6,1.68083922]
[1772103276065,1.0173299,2063.0,2062.6,1.68083922]
[1772103276366,1.0173299,2063.0,2062.6,1.48567924]
[1772103276664,1.0173299,2063.0,2062.5,1.57371281]
[1772103276860,1.59165263,2062.9,2062.2,1.57371281]
[1772103277266,1.59165263,2062.9,2062.2,1.57905472]
[1772103278367,1.18808593,2063.2,2062.2,1.57905472]
[1772103278666,1.59165263,2063.1,2062.6,1.57371281]
[1772103279164,1.59165263,2063.1,2062.4,1.57371281]
[1772103279466,1.59165263,2062.7,2062.4,1.57371281]
[1772103280962,1.59165263,2062.7,2062.2,1.57905472]
[1772103281667,2.77574931,2062.7,2062.2,1.57905472]
[1772103281862,1.59165263,2063.1,2062.4,1.18409668]
[1772103282068,1.59165263,2063.0,2062.5,1.57371281]
[1772103282267,1.59165263,2062.8,2062.3,1.57371281]
[1772103282470,1.59165263,2062.8,2062.2,1.57905472]
[1772103283364,1.18409668,2062.7,2062.2,1.57905472]
[1772103283668,1.59165263,2062.6,2062.2,1.57905472]
[1772103284969,1.59165263,2062.6,2062.2,0.00534191]
[1772103286166,1.59165263,2062.6,2062.2,1.57905472]
[1772103288277,1.59165263,2062.6,2062.0,1.57371281]
[1772103289072,1.59165263,2062.6,2062.1,1.57371281]
[1772103289466,1.59165263,2062.6,2062.1,1.57799836]
[1772103289669,1.59165263,2062.8,2062.1,1.57799836]
[1772103290072,1.59165263,2062.6,2062.1,1.57799836]
[1772103294681,1.59165263,2062.6,2062.1,0.00428555]
[1772103294883,1.59165263,2062.6,2061.9,1.57371281]
[1772103295579,1.59165263,2062.8,2061.9,1.57371281]
[1772103295884,9.1226175,2062.7,2061.9,1.57942029]
[1772103296087,1.62956525,2062.8,2061.9,1.57942029]
[1772103297688,1.62956525,2062.8,2062.1,1.65483853]
[1772103298880,3.98284843,2063.1,2062.1,1.65483853]
[1772103299086,9.1239161,2063.1,2062.4,1.65483853]
[1772103299285,7.49435085,2063.0,2062.4,1.65483853]
[1772103299883,1.62956525,2063.1,2062.4,1.65483853]
[1772103300083,1.6335545,2063.2,2062.4,1.65483853]
[1772103300288,7.48880184,2063.1,2062.4,1.65483853]
[1772103300588,1.6335545,2063.2,2062.4,1.65483853]
[1772103300889,1.62956525,2063.0,2062.4,1.65483853]
[1772103302278,0.00398925,2063.2,2062.4,1.65483853]
[1772103302279,1.6335545,2063.2,2062.4,1.65483853]
[1772103302486,7.44992743,2063.1,2062.4,1.65483853]
[1772103302786,7.44992743,2063.0,2062.4,1.65483853]
[1772103302989,0.00398925,2063.2,2062.7,1.65483853]
[1772103305390,1.6335545,2063.2,2062.5,1.65483853]
[1772103305587,8.99189385,2063.1,2062.5,1.65483853]
[1772103305891,1.62956525,2063.1,2062.5,1.65483853]
[1772103306593,1.62956525,2062.9,2062.1,1.65483853]
[1772103307292,1.62956525,2062.9,2062.2,1.18492344]
[1772103307792,1.62956525,2062.9,2062.3,1.65483853]
[1772103307987,1.62956525,2063.1,2062.3,1.65483853]
[1772103308391,9.16682922,2063.0,2062.3,1.65483853]
[1772103308594,1.62956525,2063.0,2062.3,1.65483853]
[1772103310993,1.6335545,2063.2,2062.3,1.65483853]
[1772103311189,7.5351774,2063.1,2062.3,1.65483853]
[1772103311495,1.6335545,2063.2,2062.3,1.65483853]
[1772103311693,9.16197935,2063.1,2062.3,1.65483853]
[1772103311894,1.62956525,2063.1,2062.3,1.65483853]
[1772103312199,1.6335545,2063.2,2062.3,1.89726853]
[1772103312398,1.6335545,2063.2,2062.6,1.65483853]
[1772103312699,0.00398925,2063.2,2062.6,1.65483853]
[1772103313798,1.62956525,2063.6,2062.9,1.65483853]
[1772103314000,7.50377467,2063.5,2062.9,1.65483853]
[1772103314199,1.62956525,2063.6,2062.9,1.65483853]
[1772103314801,1.63484778,2063.6,2062.9,1.65483853]
[1772103315204,0.00528253,2063.6,2062.9,1.65483853]
[1772103316501,1.63484778,2063.6,2062.9,1.65483853]
[1772103326009,1.24952558,2064.3,2063.4,1.67293869]
[1772103327014,1.25383272,2064.3,2063.4,1.67824225]
[1772103328510,1.243418,2063.9,2062.9,1.67293869]
[1772103328715,1.243418,2063.7,2062.9,1.67293869]
[1772103329415,1.243418,2063.7,2062.9,1.67860632]
[1772103332407,42.0080729,2063.6,2062.9,1.67860632]
[1772103332615,1.2080729,2063.6,2062.9,1.67860632]
[1772103333714,1.20891324,2063.8,2062.9,1.67860632]
[1772103335415,1.21125858,2063.9,2062.9,1.67860632]
[1772103336921,1.21125858,2063.9,2063.1,1.69680438]
[1772103337124,1.2004522,2064.1,2063.1,1.69680438]
[1772103338918,42.01110627,2064.3,2063.1,1.93913438]
[1772103339118,8.6527099,2064.2,2063.1,1.93913438]
[1772103339313,8.6527099,2064.1,2063.1,1.93913438]
[1772103339517,1.20679913,2064.1,2063.1,1.93913438]
[1772103340723,7.63117121,2064.0,2063.1,1.93913438]
[1772103340923,1.20679913,2064.1,2063.1,1.93913438]
[1772103341121,8.8386925,2064.0,2063.1,1.93913438]
[1772103341319,1.20752334,2063.9,2063.1,1.93913438]
[1772103344124,1.21293709,2064.1,2063.1,1.93913438]
[1772103344324,8.84417893,2064.0,2063.1,1.93913438]
[1772103344525,7.63124184,2063.9,2063.1,1.93913438]
[1772103345024,1.21141114,2063.8,2063.1,1.93913438]
[1772103346827,1.20433747,2063.9,2063.1,1.93913438]
[1772103347026,1.20433747,2064.0,2063.1,1.93913438]
[1772103347222,7.63131485,2063.9,2063.1,1.93913438]
[1772103347426,1.20433747,2064.0,2063.1,1.93913438]
[1772103347628,8.83641993,2063.9,2063.1,1.93913438]
[1772103347822,1.20504404,2063.9,2063.1,1.93913438]
[1772103348626,1.20081519,2064.0,2063.1,1.93913438]
[1772103350730,1.20690562,2064.2,2063.1,1.93913438]
[1772103350929,1.20690562,2064.0,2063.1,1.93913438]
[1772103355232,1.20690562,2064.0,2063.2,1.18331536]
[1772103356332,1.20690562,2064.0,2063.3,1.66782346]
[1772103356532,1.20690562,2064.0,2063.4,1.18331536]
[1772103356731,1.20690562,2064.0,2063.5,1.66782346]
[1772103357334,5.17312995,2064.3,2063.5,1.66782346]
[1772103357635,1.20992594,2064.1,2063.5,1.66782346]
[1772103358038,1.20992594,2064.2,2063.7,1.66782346]
[1772103358433,1.20992594,2064.2,2063.5,8.01082346]
[1772103359640,1.20992594,2064.2,2063.6,1.66782346]
[1772103360438,1.21724445,2064.0,2063.5,8.01082346]
[1772103364147,1.244605,2063.8,2063.5,8.01082346]
[1772103364843,1.24563039,2063.9,2063.6,1.66782346]
[1772103365147,1.24563039,2063.9,2063.5,8.01082346]
[1772103366849,1.23771479,2063.5,2062.9,0.96642305]
[1772103367147,1.18331536,2063.6,2062.9,0.96642305]
[1772103367148,1.65253516,2063.3,2062.9,0.96642305]
[1772103367643,1.65253516,2063.6,2062.9,0.96642305]
[1772103367848,1.65253516,2063.4,2062.9,0.97047056]
[1772103372145,1.65253516,2063.6,2062.9,0.97047056]
[1772103372350,7.63302165,2063.5,2062.9,0.97047056]
[1772103372650,1.65253516,2063.6,2062.9,0.97047056]
[1772103372843,1.65253516,2063.4,2062.9,0.97047056]
[1772103379456,1.65253516,2063.2,2062.9,0.00404751]
[1772103381458,1.648962,2063.2,2062.9,0.00404751]
[1772103385060,1.65253516,2063.0,2062.9,0.00404751]
[1772103385751,1.65253516,2063.2,2062.9,0.00404751]
[1772103385954,1.64442587,2063.0,2062.9,0.00404751]
[1772103387257,3.98550745,2063.3,2062.9,1.67531978]
[1772103387567,6.73195982,2063.2,2063.0,1.67127227]
[1772103387759,5.62993332,2063.4,2063.0,1.67127227]
[1772103387960,1.64442587,2063.3,2063.0,1.67127227]
[1772103389064,1.64442587,2063.3,2062.9,8.01931978]
[1772103389563,1.64442587,2063.3,2063.0,1.67127227]
[1772103391260,1.64442587,2063.4,2063.0,1.67127227]
[1772103392859,5.62993332,2063.5,2063.0,1.67127227]
[1772103393064,1.64442587,2063.5,2063.0,1.67127227]
[1772103393266,5.62993332,2063.5,2063.0,1.67127227]
[1772103393467,1.64442587,2063.4,2063.0,1.67127227]
[1772103395170,1.64442587,2063.5,2063.0,1.67127227]
[1772103395465,1.64442587,2063.5,2063.2,1.67127227]
[1772103395867,1.64442587,2063.5,2063.2,8.01527227]
[1772103396062,5.62993332,2063.6,2063.3,1.67127227]
[1772103396256,1.73546214,2063.7,2063.3,1.67127227]
[1772103396462,1.73546214,2063.7,2063.2,8.05964514]
[1772103396663,1.73546214,2063.7,2063.2,6.344]
[1772103397568,1.73546214,2063.7,2063.2,8.05964514]
[1772103397768,1.73546214,2063.7,2063.3,1.71564514]
[1772103398364,1.73546214,2063.9,2063.4,1.71564514]
[1772103399769,9.36749029,2063.8,2063.4,1.71564514]
[1772103399968,7.63202815,2063.7,2063.4,1.71564514]
[1772103400169,1.73546214,2063.8,2063.4,1.71564514]
[1772103400372,7.63203053,2063.7,2063.4,1.71564514]
[1772103400665,1.73546214,2063.8,2063.4,1.71564514]
[1772103400869,7.63203003,2063.7,2063.4,1.71564514]
[1772103401065,1.73546214,2063.8,2063.4,1.71564514]
[1772103401265,7.63203003,2063.7,2063.4,1.71564514]
[1772103401466,1.73546214,2063.8,2063.4,1.71564514]
[1772103401769,7.63203003,2063.7,2063.4,1.71564514]
[1772103402071,1.73546214,2063.8,2063.4,1.71564514]
[1772103402770,7.63202984,2063.7,2063.4,1.71564514]
[1772103403071,1.73546214,2063.8,2063.4,1.71564514]
[1772103404667,1.73546214,2063.8,2063.2,6.344]
[1772103404868,1.73546214,2063.8,2063.3,1.71564514]
[1772103406071,1.73546214,2063.6,2063.1,8.05964514]
[1772103407071,1.73546214,2063.6,2063.2,1.71564514]
[1772103407277,1.73546214,2063.6,2063.1,8.05964514]
[1772103408273,1.73546214,2063.6,2063.2,1.71564514]
[1772103409071,1.73546214,2063.2,2062.7,1.71564514]
[1772103409272,1.73546214,2063.4,2062.7,1.71564514]
[1772103409573,1.73546214,2063.3,2062.7,1.71564514]
[1772103410171,1.73546214,2063.3,2062.7,1.71983987]
[1772103411573,1.73546214,2063.3,2062.8,1.18392979]
[1772103411775,1.73546214,2063.3,2062.8,2.89957493]
[1772103412076,1.73546214,2063.3,2062.9,1.71564514]
[1772103412468,1.73546214,2063.3,2062.9,8.06064514]
[1772103414970,1.73546214,2063.6,2063.0,1.71564514]
[1772103415177,1.73546214,2063.4,2063.0,1.71564514]
[1772103419688,1.73546214,2063.4,2062.9,7.94335311]
[1772103419984,1.73546214,2063.4,2063.0,1.59835311]
[1772103421084,1.73546214,2063.4,2062.9,7.94335311]
[1772103421386,1.69103398,2063.2,2062.9,7.94335311]
[1772103421586,1.69103398,2063.6,2063.0,1.59835311]
[1772103421787,9.32379047,2063.5,2063.0,1.59835311]
[1772103421979,9.32379047,2063.4,2063.0,1.59835311]
[1772103422178,1.69103398,2063.4,2063.0,1.59835311]
[1772103423185,1.69103398,2063.7,2063.0,1.59835311]
[1772103423488,7.63240271,2063.6,2063.0,1.59835311]
[1772103423787,1.69103398,2063.9,2063.0,1.59835311]
[1772103423988,9.32318832,2063.8,2063.0,1.59835311]
[1772103424188,7.63215434,2063.7,2063.0,1.59835311]
[1772103424488,1.69103398,2063.8,2063.0,1.59835311]
[1772103424687,7.63215434,2063.7,2063.0,1.59835311]
[1772103424988,1.69103398,2063.8,2063.0,1.59835311]
[1772103425183,7.63214867,2063.7,2063.0,1.59835311]
[1772103425385,1.69103398,2063.8,2063.0,1.59835311]
[1772103425586,7.63214867,2063.7,2063.0,1.59835311]
[1772103425787,1.69103398,2063.8,2063.0,1.59835311]
[1772103425983,7.63212579,2063.7,2063.0,1.59835311]
[1772103426182,1.69103398,2064.1,2063.2,1.59835311]
[1772103426378,7.63097676,2064.0,2063.4,1.59835311]
[1772103426578,1.69103398,2064.1,2063.4,1.59835311]
[1772103426782,9.28954299,2064.0,2063.4,1.59835311]
[1772103426985,1.69103398,2064.0,2063.4,1.59835311]
[1772103434690,1.69103398,2064.2,2063.5,1.59835311]
[1772103434888,1.69103398,2064.2,2063.7,1.59835311]
[1772103437690,1.69534112,2064.3,2063.7,1.59835311]
[1772103437897,0.00430714,2064.3,2063.7,1.59835311]
[1772103438195,0.00025963,2064.3,2063.7,1.59835311]
[1772103441699,1.69129361,2064.3,2063.7,1.59835311]
[1772103441894,1.69129361,2064.3,2063.6,7.94335311]
[1772103444000,1.69129361,2064.3,2063.7,1.59835311]
[1772103446202,1.69129361,2064.3,2063.6,6.345]
[1772103446401,1.69129361,2064.3,2063.6,7.93515991]
[1772103450006,1.63931213,2064.1,2063.6,7.93515991]
[1772103450605,1.63931213,2064.1,2063.7,1.59015991]
[1772103453409,0.00025963,2064.3,2063.7,1.59015991]
[1772103453707,9.26963346,2064.2,2063.7,1.59015991]
[1772103453907,1.63931213,2064.2,2063.7,1.59015991]
[1772103454408,0.00025963,2064.3,2063.7,1.59015991]
[1772103465615,1.5859569,2064.1,2063.7,1.59015991]
[1772103465920,1.5859569,2064.1,2063.6,8.03486926]
[1772103466114,1.5859569,2064.1,2063.7,1.68986926]
[1772103469927,1.58621653,2064.3,2063.7,1.68986926]
[1772103470130,1.5859569,2064.1,2063.7,1.68986926]
[1772103474932,1.29044043,2064.5,2063.8,1.70711004]
[1772103475135,7.62914985,2064.4,2064.0,1.70711004]
[1772103475333,2.9124201,2064.5,2064.0,1.70711004]
[1772103475527,7.62912501,2064.4,2064.0,1.70711004]
[1772103475722,2.9124201,2064.5,2064.0,1.70711004]
[1772103475928,1.62584475,2064.5,2064.0,1.70711004]
[1772103480033,0.00386508,2064.5,2064.2,1.67470743]
[1772103480233,0.00386508,2064.5,2064.2,8.02575345]
[1772103480534,1.65664349,2064.8,2064.3,1.67470743]
[1772103480834,1.65664349,2064.6,2064.3,1.67470743]
[1772103481231,1.65664349,2064.6,2064.2,6.35104602]
[1772103481531,1.65664349,2064.5,2064.0,6.345]
[1772103481735,1.65664349,2064.3,2063.9,1.67470743]
[1772103482433,1.66085235,2064.3,2063.9,1.67867899]
[1772103486135,1.66085235,2064.3,2063.9,0.00397156]
[1772103487838,1.66085235,2064.3,2063.9,1.67867899]
[1772103488541,1.66085235,2064.3,2063.9,0.00397156]
[1772103493640,1.73563714,2065.9,2064.5,0.24217]
[1772103493837,1.73563714,2065.7,2065.2,1.18252834]
[1772103494041,1.73563714,2065.7,2065.2,7.52852834]
[1772103494241,1.73563714,2065.7,2065.2,6.346]
[1772103494448,1.7409027,2065.7,2065.3,1.67470743]
[1772103494649,29.05970552,2065.6,2065.3,1.67470743]
[1772103499652,1.76022442,2065.7,2065.3,1.67470743]
[1772103499852,30.81992994,2065.7,2065.3,1.67470743]
[1772103502751,1.7355709,2066.0,2065.3,1.67470743]
[1772103503055,30.79527642,2065.9,2065.3,1.67470743]
[1772103503251,1.7355709,2065.9,2065.3,1.67470743]
[1772103503756,1.74066125,2065.9,2065.3,1.67470743]
[1772103504962,1.72463613,2065.4,2064.9,6.345]
[1772103505256,1.72463613,2065.4,2064.9,8.01970743]
[1772103505452,29.05970552,2065.3,2065.0,1.67470743]
[1772103505649,1.72468355,2065.4,2065.0,0.73901617]
[1772103506256,1.72468355,2065.4,2065.0,0.73869826]
[1772103507259,1.72468355,2065.4,2065.0,0.80652212]
[1772103507458,29.05970552,2065.3,2065.0,0.80652212]
[1772103507758,31.70260292,2065.3,2065.0,0.80652212]
[1772103508053,2.6428974,2065.2,2064.9,7.1416259]
[1772103508260,2.6428974,2065.2,2064.9,6.345]
[1772103508452,10.29109035,2065.9,2065.0,0.78676784]
[1772103508453,30.17391738,2065.5,2065.0,0.78676784]
[1772103508659,2.6428974,2065.4,2065.0,0.78676784]
[1772103508852,29.61028276,2065.8,2065.0,0.78676784]
[1772103508853,2.6428974,2065.5,2065.0,0.78676784]
[1772103509257,2.6428974,2065.5,2065.1,1.73327641]
[1772103509457,2.6428974,2065.5,2065.2,6.344]
[1772103509662,0.96818989,2065.5,2065.2,6.344]
[1772103509960,0.96818989,2065.5,2065.2,9.23198885]
[1772103510461,0.96818989,2065.5,2065.2,6.344]
[1772103510660,0.96818989,2065.5,2065.2,9.23198885]
[1772103512058,29.39594431,2065.5,2065.2,9.23198885]
[1772103513966,28.42775442,2065.5,2065.3,2.88798885]
[1772103515161,2.77714385,2065.5,2065.2,6.91231314]
[1772103515359,2.77714385,2065.6,2065.2,6.91231314]
[1772103515563,2.77714385,2065.6,2065.3,0.56193847]
[1772103518467,2.96480801,2065.7,2065.3,0.56193847]
[1772103518665,2.96480801,2065.7,2064.9,0.82540519]
[1772103518865,2.96480801,2065.5,2065.0,6.344]
[1772103519169,2.96480801,2065.5,2065.0,7.16940519]
[1772103519567,2.96480801,2065.5,2065.0,7.16189487]
[1772103520069,2.96480801,2065.5,2065.0,0.81789487]
[1772103520265,2.96480801,2065.5,2065.1,6.344]
[1772103520667,2.96480801,2065.5,2065.1,7.13087361]
[1772103523670,2.96480801,2065.5,2065.2,0.75558319]
[1772103523872,24.13652626,2065.4,2065.3,6.344]
[1772103524171,24.13652626,2065.4,2065.3,5.442]
[1772103524372,27.10133427,2065.4,2065.3,5.442]
[1772103527468,2.06280801,2065.6,2065.3,5.442]
[1772103527774,2.06280801,2065.6,2065.3,7.15765256]
[1772103528476,2.06280801,2065.6,2065.3,5.442]
[1772103530078,2.96480801,2065.4,2065.0,2.94447256]
[1772103530272,2.96480801,2065.4,2065.1,6.343]
[1772103530577,2.96480801,2065.4,2065.0,2.94447256]
[1772103530776,2.96480801,2065.3,2065.1,6.343]
[1772103531179,2.06280801,2065.3,2065.2,6.343]
[1772103531381,2.96480801,2065.8,2065.2,6.343]
[1772103531678,2.96480801,2065.4,2065.3,6.343]
[1772103532081,27.07231011,2065.4,2065.2,5.441]
[1772103533281,24.1075021,2065.4,2065.2,5.441]
[1772103534183,4.78882755,2065.4,2065.2,8.52051389]
[1772103534382,2.96480801,2065.8,2065.3,3.07951389]
[1772103534784,6.52213834,2065.7,2065.4,3.07951389]
[1772103534978,6.52213834,2065.7,2065.4,3.08529399]
[1772103535179,6.52213834,2065.7,2065.4,9.42829399]
[1772103535584,2.96480801,2065.7,2065.4,9.42829399]
[1772103536589,2.96480801,2065.7,2065.4,3.08529399]
[1772103536788,2.96480801,2065.7,2065.5,6.343]
[1772103537086,2.96480801,2065.7,2065.4,3.08529399]
[1772103537390,0.00509035,2065.9,2065.5,5.441]
[1772103537391,7.48268315,2065.6,2065.5,5.441]
[1772103537590,3.92535282,2065.6,2065.5,5.441]
[1772103537793,7.48268315,2065.6,2065.5,3.86815349]
[1772103538591,3.55733033,2065.6,2065.5,3.86815349]
[1772103538991,3.92535282,2065.7,2065.5,3.86815349]
[1772103539192,3.55733033,2065.6,2065.5,3.86815349]
[1772103539492,7.48268315,2065.6,2065.5,3.86815349]
[1772103540089,3.92535282,2065.6,2065.5,3.86815349]
[1772103541194,3.92535282,2065.8,2065.5,3.86815349]
[1772103541396,3.92535282,2065.7,2065.5,3.86815349]
[1772103544092,3.04966033,2065.8,2065.6,3.91781899]
[1772103544300,3.92535282,2066.5,2065.8,3.91781899]
[1772103544595,3.92535282,2066.5,2066.0,3.91781899]
[1772103544796,3.92535282,2066.5,2066.2,3.91781899]
[1772103545195,3.93142874,2066.5,2066.2,3.91781899]
[1772103546093,3.93142874,2066.5,2066.1,6.343]
[1772103546293,3.93142874,2066.5,2066.1,0.38811453]
[1772103546596,3.93142874,2066.5,2066.0,6.343]
[1772103546793,3.93142874,2066.5,2065.8,3.91781899]
[1772103546998,3.93142874,2066.5,2065.9,6.343]
[1772103547199,3.93142874,2066.5,2065.9,10.26081899]
[1772103549199,3.93142874,2066.5,2066.0,3.91781899]
[1772103549900,0.00607592,2066.5,2066.0,3.91781899]
[1772103550600,3.16403042,2066.5,2066.0,3.91781899]
[1772103551796,3.16403042,2066.5,2065.9,6.343]
[1772103552000,3.16403042,2066.5,2065.9,10.26081899]
[1772103552300,3.16403042,2066.5,2066.0,3.91781899]
[1772103552702,0.00607592,2066.5,2066.0,3.91781899]
[1772103553396,3.09633969,2066.5,2065.8,3.91781899]
[1772103553601,3.09633969,2066.5,2065.6,10.25981899]
[1772103553801,3.06688232,2066.3,2065.4,10.26559909]
[1772103554403,3.06688232,2066.3,2065.5,3.91781899]
[1772103554902,3.08850468,2066.0,2065.4,0.0057801]
[1772103555108,3.08850468,2066.0,2065.1,10.25981899]
[1772103555604,3.05940811,2065.9,2065.2,3.91781899]
[1772103556199,3.05940811,2065.9,2065.2,3.92198345]
[1772103562711,2.95123551,2066.1,2065.2,3.92198345]
[1772103573717,2.69572966,2066.3,2065.2,3.92198345]
[1772103576118,2.61998876,2066.1,2065.2,3.92198345]
[1772103576312,2.59797314,2065.9,2065.2,3.92198345]
[1772103580119,2.59797314,2065.9,2065.3,4.28852906]
[1772103583518,2.59797314,2065.9,2065.2,4.29269352]
[1772103588622,2.59797314,2065.9,2065.2,4.39269352]
[1772103590123,2.59797314,2065.9,2064.7,4.28852906]
[1772103590330,2.16380991,2065.8,2064.7,4.28852906]
[1772103591427,2.16380991,2065.8,2064.7,4.29246263]
[1772103591727,2.16380991,2065.8,2064.9,4.28852906]
[1772103597334,2.16380991,2065.8,2065.0,4.02498485]
[1772103601743,2.03321313,2065.4,2065.0,4.02498485]
[1772103601940,2.10944071,2065.2,2064.7,4.02891842]
[1772103603551,2.07147598,2065.5,2064.7,4.02891842]
[1772103604145,1.1814225,2065.4,2064.7,4.02891842]
[1772103604449,1.1814225,2065.2,2064.7,4.02891842]
[1772103604649,2.06332131,2065.1,2064.7,4.02891842]
[1772103609155,2.06332131,2065.1,2064.4,4.02498485]
[1772103609354,2.21717443,2064.9,2064.4,4.02498485]
[1772103610242,2.22324768,2064.9,2064.4,4.03031794]
[1772103612453,2.22624728,2065.1,2064.5,4.02498485]
[1772103613354,2.23125892,2065.1,2064.5,4.02498485]
[1772103614057,10.466,2065.3,2064.9,4.02498485]
[1772103614254,12.64361928,2065.3,2064.9,4.02498485]
[1772103614455,2.15977236,2065.4,2064.9,4.02498485]
[1772103614657,2.15977236,2065.6,2064.9,4.02498485]
[1772103615054,2.16324679,2065.6,2064.9,4.02498485]
[1772103616256,2.14164145,2065.5,2064.9,4.02498485]
[1772103619054,1.1814225,2065.2,2064.6,4.02498485]
[1772103619259,2.08362308,2065.1,2064.6,4.02498485]
[1772103619858,12.6453987,2065.5,2064.9,4.02498485]
[1772103620062,2.0653987,2065.4,2064.8,4.02498485]